fUSD/lending_fUSD_20260527
["ID","MTS","AMOUNT","RATE_DAILY","PERIOD"]
[423078885,1779827432000,-500.0,0.00028997,2]
[423078873,1779827432000,-208.92835186,0.00027396,2]
[423078920,1779827432000,-500.0,0.00028997,2]
[423078938,1779827432000,-150.0,0.00029,2]
[423078888,1779827432000,-500.0,0.00028997,2]
[423078927,1779827432000,-500.0,0.00028997,2]
[423078930,1779827432000,-500.0,0.00028997,2]
[423078935,1779827432000,-528.57,0.00029,2]
[423078884,1779827432000,-274.00350829,0.00028997,2]
[423078917,1779827432000,-500.0,0.00028997,2]
[423078947,1779827437000,-1063.65325196,0.00028987,10]
[423078945,1779827437000,-201.23,0.00024658,2]
[423078949,1779827437000,-1028.48,0.00029,2]
[423078946,1779827437000,-549.74674804,0.00028987,10]
[423078950,1779827437000,-1211.5065005,0.00029,2]
[423078951,1779827437000,-8100.61258535,0.00029,2]
[423078948,1779827437000,-109.31448807,0.00029,2]
[423078953,1779827437000,-12004.25049394,0.00029,2]
[423078952,1779827437000,-733.44231273,0.00029,2]
[423078954,1779827438000,-5542.27453858,0.00029,2]
[423078955,1779827438000,-906.56824085,0.00029,2]
[423078958,1779827439000,-1839.61224414,0.00029,2]
[423078960,1779827440000,-13468.13769172,0.00029,2]
[423078959,1779827440000,-54484.37050708,0.00029,2]
[423078988,1779827443000,-153.0,0.00029572,30]
[423078981,1779827443000,-2609.38069428,0.00029,2]
[423078983,1779827443000,-516.0,0.0002915,6]
[423078982,1779827443000,-1000.0,0.00029,2]
[423078986,1779827443000,-159.0,0.00029572,30]
[423078985,1779827443000,-152.0,0.00029415,2]
[423078984,1779827443000,-1646.82,0.00029376,7]
[423078995,1779827443000,-153.0,0.00029572,30]
[423078990,1779827443000,-153.0,0.00029572,30]
[423078987,1779827443000,-158.0,0.00029572,30]
[423078989,1779827443000,-154.0,0.00029572,30]
[423078993,1779827443000,-152.0,0.00029572,30]
[423078992,1779827443000,-159.0,0.00029572,30]
[423078998,1779827443000,-180.74205626,0.00029899,2]
[423078991,1779827443000,-163.0,0.00029572,30]
[423078997,1779827443000,-170.06,0.00029844,2]
[423078996,1779827443000,-1000.0,0.000297,7]
[423078999,1779827443000,-11094.02243011,0.000299,2]
[423079001,1779827443000,-1609.527029,0.000299,2]
[423078994,1779827443000,-153.0,0.00029572,30]
[423079015,1779827445000,-1116.41,0.000299,2]
[423079014,1779827445000,-8385.13039738,0.000299,2]
[423079028,1779827955000,152.84,0.00012845,2]
[423079029,1779827956000,152.84,0.00014986,2]
[423079037,1779828602000,151.34233451,0.00028082,120]
[423079039,1779828631000,-243.7,0.00016438,2]
[423079040,1779828631000,-538.44564027,0.000165,2]
[423079041,1779828631000,-163.13,0.00016828,2]
[423079042,1779828631000,-140.28435973,0.00016931,2]
[423079044,1779828631000,-152.84,0.00017127,2]
[423079046,1779828631000,-112.14604397,0.00018695,2]
[423079047,1779828631000,-55.31395603,0.00018695,2]
[423079045,1779828631000,-243.7,0.0001841,2]
[423079049,1779828631000,-378.65464734,0.00019625,2]
[423079051,1779828631000,-570.6825,0.00019625,2]
[423079050,1779828631000,-500.02452,0.00019625,2]
[423079048,1779828631000,-152.84,0.00019268,2]
[423079043,1779828631000,-10.31395603,0.00016931,2]
[423079053,1779828631000,-84315.53693266,0.00019625,2]
[423079052,1779828631000,-1137.96,0.00019625,2]
[423079067,1779828631000,-500.0,0.00019725,2]
[423079066,1779828631000,-500.0,0.00019725,2]
[423079058,1779828631000,-4372.12691309,0.00019626,2]
[423079059,1779828631000,-7845.75495764,0.00019626,2]
[423079061,1779828631000,-3796.1367,0.00019626,2]
[423079064,1779828631000,-555.0,0.00019724,2]
[423079057,1779828631000,-904.88210267,0.00019626,2]
[423079060,1779828631000,-66556.13502927,0.00019626,2]
[423079056,1779828631000,-300.0,0.00019625,2]
[423079062,1779828631000,-1365.04156453,0.000197,2]
[423079055,1779828631000,-1200.0,0.00019625,2]
[423079054,1779828631000,-300.0,0.00019625,2]
[423079102,1779828632000,-500.0,0.00019725,2]
[423079099,1779828632000,-500.0,0.00019725,2]
[423079100,1779828632000,-500.0,0.00019725,2]
[423079101,1779828632000,-500.0,0.00019725,2]
[423079106,1779828632000,-500.0,0.00019725,2]
[423079104,1779828632000,-500.0,0.00019725,2]
[423079103,1779828632000,-500.0,0.00019725,2]
[423079105,1779828632000,-500.0,0.00019725,2]
[423079098,1779828632000,-500.0,0.00019725,2]
[423079109,1779828632000,-500.0,0.00019725,2]
[423079118,1779828632000,-1000.0,0.0002,2]
[423079111,1779828632000,-500.0,0.00019725,2]
[423079113,1779828632000,-628.0,0.00019931,2]
[423079115,1779828632000,-157.0,0.0002,2]
[423079114,1779828632000,-500.0,0.00019999,2]
[423079096,1779828632000,-500.0,0.00019725,2]
[423079117,1779828632000,-155.0,0.0002,2]
[423079110,1779828632000,-500.0,0.00019725,2]
[423079116,1779828632000,-153.0,0.0002,2]
[423079119,1779828632000,-781.0,0.00020284,2]
[423079121,1779828632000,-3184.0,0.00020733,2]
[423079112,1779828632000,-500.0,0.00019725,2]
[423079107,1779828632000,-500.0,0.00019725,2]
[423079093,1779828632000,-337.2847984,0.00019725,2]
[423079097,1779828632000,-500.0,0.00019725,2]
[423079130,1779828632000,-904.8821026,0.00021768,2]
[423079077,1779828632000,-500.0,0.00019725,2]
[423079076,1779828632000,-229.33446668,0.00019725,2]
[423079070,1779828632000,-500.0,0.00019725,2]
[423079073,1779828632000,-500.0,0.00019725,2]
[423079078,1779828632000,-500.0,0.00019725,2]
[423079081,1779828632000,-500.0,0.00019725,2]
[423079082,1779828632000,-281.50002463,0.00019725,2]
[423079079,1779828632000,-500.0,0.00019725,2]
[423079080,1779828632000,-500.0,0.00019725,2]
[423079108,1779828632000,-500.0,0.00019725,2]
[423079083,1779828632000,-580.61328139,0.00019725,2]
[423079086,1779828632000,-500.0,0.00019725,2]
[423079084,1779828632000,-500.0,0.00019725,2]
[423079094,1779828632000,-500.0,0.00019725,2]
[423079088,1779828632000,-500.0,0.00019725,2]
[423079092,1779828632000,-500.0,0.00019725,2]
[423079087,1779828632000,-500.0,0.00019725,2]
[423079095,1779828632000,-500.0,0.00019725,2]
[423079090,1779828632000,-500.0,0.00019725,2]
[423079089,1779828632000,-500.0,0.00019725,2]
[423079091,1779828632000,-500.0,0.00019725,2]
[423079085,1779828632000,-500.0,0.00019725,2]
[423079127,1779828632000,-250.0,0.00021387,2]
[423079140,1779828632000,-189.59,0.00023551,2]
[423079128,1779828632000,-152.84,0.00021409,2]
[423079149,1779828632000,-904.8821026,0.00026051,2]
[423079151,1779828632000,-243.7,0.00026296,2]
[423079153,1779828632000,-500.0,0.00026675,2]
[423079154,1779828632000,-1344.5,0.00027397,10]
[423079156,1779828632000,-933.68,0.00027397,10]
[423079158,1779828632000,-1365.04156451,0.00027995,2]
[423079157,1779828632000,-778.06,0.00027397,10]
[423079163,1779828632000,-500.0,0.00028999,120]
[423079120,1779828632000,-243.7,0.00020381,2]
[423079165,1779828632000,-504.33479177,0.00028999,120]
[423079152,1779828632000,-500.0,0.00026675,2]
[423079159,1779828632000,-904.8821026,0.00028192,2]
[423079166,1779828632000,-500.0,0.00028999,7]
[423079161,1779828632000,-189.59,0.00028785,120]
[423079160,1779828632000,-243.7,0.00028267,2]
[423079167,1779828632000,-500.0,0.00028999,2]
[423079169,1779828632000,-500.0,0.00028999,120]
[423079168,1779828632000,-500.0,0.00028999,120]
[423079173,1779828632000,-422.55131182,0.00028999,120]
[423079170,1779828632000,-168.13322505,0.00028999,7]
[423079171,1779828632000,-331.86677495,0.00028999,7]
[423079172,1779828632000,-500.0,0.00028999,120]
[423079162,1779828632000,-500.0,0.00028999,2]
[423079150,1779828632000,-189.59,0.00026168,2]
[423079164,1779828632000,-500.0,0.00028999,120]
[423079147,1779828632000,-1000.0,0.00025847,2]
[423079148,1779828632000,-1500.0,0.00026,2]
[423079131,1779828632000,-5000.0,0.00021918,2]
[423079125,1779828632000,-155.0,0.00021,2]
[423079124,1779828632000,-153.0,0.00021,2]
[423079122,1779828632000,-189.59,0.00020934,2]
[423079123,1779828632000,-157.0,0.00021,2]
[423079126,1779828632000,-4987.66,0.00021029,2]
[423079132,1779828632000,-157.0,0.00022,2]
[423079136,1779828632000,-1365.04156451,0.00022465,2]
[423079135,1779828632000,-243.7,0.00022353,2]
[423079137,1779828632000,-157.0,0.00023,2]
[423079129,1779828632000,-585.0,0.00021481,2]
[423079138,1779828632000,-166.0,0.00023,2]
[423079134,1779828632000,-168.0,0.00022,2]
[423079144,1779828632000,-1365.04156451,0.0002523,2]
[423079155,1779828632000,-1120.41,0.00027397,10]
[423079145,1779828632000,-152.84,0.0002569,2]
[423079142,1779828632000,-172.0,0.00024,2]
[423079146,1779828632000,-168.0,0.0002578,2]
[423079143,1779828632000,-243.7,0.00024324,2]
[423079141,1779828632000,-904.8821026,0.00023909,2]
[423079133,1779828632000,-153.0,0.00022,2]
[423079139,1779828632000,-152.84,0.00023549,2]
[423079202,1779828640000,-150.0,0.00029,2]
[423079201,1779828640000,-475.71,0.00029,2]
[423079200,1779828640000,-475.71,0.00029,2]
[423079198,1779828640000,-475.71,0.00029,2]
[423079197,1779828640000,-500.0,0.00028999,30]
[423079196,1779828640000,-500.0,0.00028999,120]
[423079194,1779828640000,-1807.42417041,0.00026556,7]
[423079195,1779828640000,-77.44868818,0.00028999,120]
[423079204,1779828640000,-3047.0964885,0.00029127,2]
[423079192,1779828640000,-1807.42417041,0.00026466,7]
[423079186,1779828640000,-1807.42417041,0.00026196,2]
[423079203,1779828640000,-500.0,0.00029126,120]
[423079193,1779828640000,-1807.42417041,0.00026511,7]
[423079189,1779828640000,-1807.42417041,0.00026331,2]
[423079188,1779828640000,-1807.42417041,0.00026286,2]
[423079187,1779828640000,-1807.42417041,0.00026241,2]
[423079190,1779828640000,-1807.42417041,0.00026376,7]
[423079191,1779828640000,-1807.42417041,0.00026421,7]
[423079184,1779828640000,-1581.3987602,0.00019976,2]
[423079185,1779828640000,-1807.42417041,0.00026151,2]
[423079206,1779828640000,-487.0,0.00029127,2]
[423079199,1779828640000,-475.72,0.00029,2]
[423079205,1779828640000,-6382.9583624,0.00029127,2]
[423079225,1779828640000,-500.0,0.00029899,7]
[423079208,1779828640000,-156.0,0.00029577,30]
[423079209,1779828640000,-159.0,0.00029577,30]
[423079230,1779828640000,-1136.24390472,0.000299,2]
[423079231,1779828640000,-474.50808334,0.000299,2]
[423079229,1779828640000,-48301.9245059,0.000299,2]
[423079227,1779828640000,-500.0,0.00029899,30]
[423079216,1779828640000,-153.0,0.00029577,30]
[423079223,1779828640000,-500.0,0.00029899,7]
[423079217,1779828640000,-154.0,0.00029577,30]
[423079222,1779828640000,-151.0,0.00029896,7]
[423079228,1779828640000,-151.0,0.00029899,7]
[423079224,1779828640000,-500.0,0.00029899,2]
[423079218,1779828640000,-159.0,0.00029577,30]
[423079226,1779828640000,-151.0,0.00029899,7]
[423079219,1779828640000,-155.0,0.00029577,30]
[423079220,1779828640000,-156.0,0.00029577,30]
[423079211,1779828640000,-159.0,0.00029577,30]
[423079212,1779828640000,-158.0,0.00029577,5]
[423079213,1779828640000,-157.0,0.00029577,30]
[423079215,1779828640000,-158.0,0.00029577,30]
[423079214,1779828640000,-157.0,0.00029577,30]
[423079210,1779828640000,-158.0,0.00029577,30]
[423079221,1779828640000,-330.0,0.0002989,14]
[423079207,1779828640000,-823.95,0.00029127,2]
[423079257,1779828643000,-1980.75330424,0.000299,2]
[423079254,1779828643000,-1807.42417041,0.00026735,7]
[423079253,1779828643000,-1807.42417041,0.0002669,7]
[423079249,1779828643000,-456.0,0.00026601,7]
[423079250,1779828643000,-516.0,0.00025082,2]
[423079255,1779828643000,-1807.42417041,0.0002678,7]
[423079256,1779828643000,-6122.88172682,0.000299,2]
[423079260,1779828643000,-343.67592073,0.00029999,2]
[423079251,1779828643000,-1351.42417041,0.00026601,7]
[423079262,1779828643000,-500.0,0.00029999,2]
[423079252,1779828643000,-1807.42417041,0.00026645,7]
[423079261,1779828643000,-500.0,0.00029999,2]
[423079271,1779828643000,-851.96037724,0.0003,2]
[423079269,1779828643000,-500.0,0.00029999,30]
[423079270,1779828643000,-5674.47349881,0.0003,2]
[423079268,1779828643000,-500.0,0.00029999,120]
[423079265,1779828643000,-425.98816924,0.00029999,2]
[423079258,1779828643000,-2700.0,0.000299,10]
[423079267,1779828643000,-313.60870501,0.00029999,2]
[423079264,1779828643000,-500.0,0.00029999,2]
[423079263,1779828643000,-500.0,0.00029999,2]
[423079259,1779828643000,-351.69511122,0.00029999,2]
[423079266,1779828643000,-93.97260774,0.00029999,2]
[423079272,1779828644000,-489.87797957,0.00026825,14]
[423079279,1779828645000,-1807.42417041,0.00026915,14]
[423079280,1779828645000,-600.0282011,0.0002696,14]
[423079278,1779828645000,-692.83181822,0.0002687,14]
[423079276,1779828645000,-612.59235219,0.0002687,14]
[423079277,1779828645000,-502.0,0.0002687,14]
[423079275,1779828645000,-1317.54619084,0.00026825,14]
[423079283,1779828770000,161.89,0.00014394,2]
[423079282,1779828770000,161.89,0.00012954,2]
[423079281,1779828770000,161.89,0.00011515,2]
[423079284,1779828905000,613.606878,0.00027346,120]
[423079285,1779828907000,1854.209057,7.945e-05,2]
[423079287,1779828924000,224.413702,0.00027346,120]
[423079288,1779828987000,336.620554,0.00027302,120]
[423079289,1779829017000,168.310277,0.00027346,120]
[423079290,1779829101000,224.623947,0.00027138,120]
[423079296,1779829529000,182.56,0.00025583,120]
[423079300,1779829643000,170.36,0.00014075,2]
[423079299,1779829643000,170.36,0.0001126,2]
[423079298,1779829643000,170.36,8.445e-05,2]
[423079303,1779829802000,7256.75014974,0.00015,2]
[423079313,1779829831000,-3200.46,0.00016415,2]
[423079320,1779829831000,-292.25111411,0.00016751,2]
[423079314,1779829831000,-163.2,0.00016438,2]
[423079315,1779829831000,-150.0,0.00016481,2]
[423079311,1779829831000,-242.152,0.00016338,2]
[423079306,1779829831000,-166.66,0.00016141,2]
[423079309,1779829831000,-150.0,0.0001632,2]
[423079308,1779829831000,-85.47063547,0.000163,2]
[423079307,1779829831000,-78.10344894,0.000163,2]
[423079305,1779829831000,-161.89,0.00015833,2]
[423079310,1779829831000,-292.25111412,0.00016338,2]
[423079312,1779829831000,-1000.0,0.00016338,2]
[423079321,1779829831000,-150.0,0.00016804,2]
[423079316,1779829831000,-166.66,0.00016481,2]
[423079317,1779829831000,-150.0,0.00016587,2]
[423079327,1779829831000,-3220.00395464,0.00016854,2]
[423079330,1779829831000,-4799.08272093,0.00016909,2]
[423079325,1779829831000,-5541.43486781,0.00016819,2]
[423079328,1779829831000,-170.36,0.0001689,2]
[423079326,1779829831000,-166.66,0.00016821,2]
[423079324,1779829831000,-300.0,0.00016818,2]
[423079322,1779829831000,-431.0,0.00016818,2]
[423079323,1779829831000,-1200.0,0.00016818,2]
[423079318,1779829831000,-150.0,0.00016643,2]
[423079319,1779829831000,-1852.42,0.00016746,2]
[423079329,1779829831000,-2509.68980572,0.00016909,2]
[423079386,1779829832000,-1680.0,0.00018464,2]
[423079396,1779829832000,-608.71475589,0.00018785,5]
[423079395,1779829832000,-477.38603842,0.00018785,5]
[423079390,1779829832000,-195.76151936,0.00018692,2]
[423079385,1779829832000,-163.2,0.0001841,2]
[423079389,1779829832000,-959.11925479,0.00018686,2]
[423079383,1779829832000,-16821.35,0.00018356,2]
[423079388,1779829832000,-2117.8693,0.00018686,2]
[423079387,1779829832000,-500.0,0.00018501,2]
[423079384,1779829832000,-213.59,0.00018377,2]
[423079405,1779829832000,-500.0,0.00018989,2]
[423079392,1779829832000,-161.89,0.00018712,2]
[423079391,1779829832000,-1730.91,0.00018704,2]
[423079407,1779829832000,-500.0,0.00018989,2]
[423079406,1779829832000,-500.0,0.00018989,2]
[423079400,1779829832000,-500.0,0.00018989,2]
[423079398,1779829832000,-2500.0,0.0001889,2]
[423079399,1779829832000,-156.21168621,0.00018989,2]
[423079394,1779829832000,-1086.10079431,0.00018785,5]
[423079381,1779829832000,-1730.91,0.00018258,2]
[423079401,1779829832000,-500.0,0.00018989,2]
[423079404,1779829832000,-500.0,0.00018989,2]
[423079402,1779829832000,-500.0,0.00018989,2]
[423079403,1779829832000,-500.0,0.00018989,2]
[423079410,1779829832000,-500.0,0.00018989,2]
[423079408,1779829832000,-500.0,0.00018989,2]
[423079419,1779829832000,-500.0,0.00018989,2]
[423079412,1779829832000,-500.0,0.00018989,2]
[423079409,1779829832000,-500.0,0.00018989,2]
[423079397,1779829832000,-1086.10079431,0.00018785,5]
[423079393,1779829832000,-500.0,0.00018775,2]
[423079374,1779829832000,-326.25593849,0.000179,2]
[423079376,1779829832000,-326.25593849,0.000179,2]
[423079332,1779829832000,-235.0,0.00016966,2]
[423079334,1779829832000,-1023.96,0.00016997,2]
[423079336,1779829832000,-5341.28331237,0.00017082,2]
[423079335,1779829832000,-182.56,0.00017055,2]
[423079338,1779829832000,-150.0,0.00017145,2]
[423079350,1779829832000,-161.89,0.00017273,2]
[423079348,1779829832000,-59390.19476734,0.00017269,2]
[423079352,1779829832000,-150.0,0.00017276,2]
[423079354,1779829832000,-1321.22,0.00017329,2]
[423079342,1779829832000,-395.0,0.00017197,2]
[423079420,1779829832000,-500.0,0.00018989,2]
[423079339,1779829832000,-166.66,0.00017161,2]
[423079341,1779829832000,-292.25111411,0.00017163,2]
[423079337,1779829832000,-2824.71668763,0.00017082,2]
[423079343,1779829832000,-200.0,0.00017197,2]
[423079345,1779829832000,-165.91,0.00017263,2]
[423079344,1779829832000,-33247.65720469,0.00017259,2]
[423079346,1779829832000,-30355.17523266,0.00017269,2]
[423079356,1779829832000,-166.66,0.00017501,2]
[423079367,1779829832000,-435.00791798,0.000179,2]
[423079358,1779829832000,-593.4,0.0001755,2]
[423079360,1779829832000,-225.49,0.00017632,2]
[423079362,1779829832000,-166.66,0.00017678,2]
[423079363,1779829832000,-1730.91,0.00017813,2]
[423079370,1779829832000,-326.2559385,0.000179,2]
[423079372,1779829832000,-326.25593849,0.000179,2]
[423079380,1779829832000,-500.0,0.00018227,2]
[423079365,1779829832000,-166.66,0.00017841,2]
[423079378,1779829832000,-186.37,0.00018071,2]
[423079382,1779829832000,-209.21338479,0.00018356,2]
[423079411,1779829832000,-500.0,0.00018989,2]
[423079472,1779829832000,-500.0,0.00019525,2]
[423079417,1779829832000,-500.0,0.00018989,2]
[423079449,1779829832000,-169.65393973,0.00019428,2]
[423079452,1779829832000,-1321.22,0.00019495,2]
[423079459,1779829832000,-500.0,0.00019525,2]
[423079458,1779829832000,-500.0,0.00019525,2]
[423079457,1779829832000,-500.0,0.00019525,2]
[423079454,1779829832000,-1086.10079431,0.00019525,5]
[423079453,1779829832000,-2011.08,0.00019507,2]
[423079455,1779829832000,-1086.10079431,0.00019525,5]
[423079456,1779829832000,-1086.10079433,0.00019525,5]
[423079460,1779829832000,-500.0,0.00019525,2]
[423079462,1779829832000,-500.0,0.00019525,2]
[423079463,1779829832000,-500.0,0.00019525,2]
[423079464,1779829832000,-500.0,0.00019525,2]
[423079465,1779829832000,-500.0,0.00019525,2]
[423079470,1779829832000,-573.31946531,0.00019525,2]
[423079461,1779829832000,-500.0,0.00019525,2]
[423079471,1779829832000,-500.0,0.00019525,2]
[423079466,1779829832000,-500.0,0.00019525,2]
[423079467,1779829832000,-500.0,0.00019525,2]
[423079469,1779829832000,-500.0,0.00019525,2]
[423079468,1779829832000,-500.0,0.00019525,2]
[423079473,1779829832000,-500.0,0.00019525,2]
[423079476,1779829832000,-500.0,0.00019525,2]
[423079474,1779829832000,-214.92437032,0.00019525,2]
[423079475,1779829832000,-500.0,0.00019525,2]
[423079480,1779829832000,-500.0,0.00019525,2]
[423079478,1779829832000,-500.0,0.00019525,2]
[423079479,1779829832000,-500.0,0.00019525,2]
[423079413,1779829832000,-500.0,0.00018989,2]
[423079451,1779829832000,-7984.15868641,0.00019494,2]
[423079450,1779829832000,-625.97650482,0.00019434,2]
[423079477,1779829832000,-500.0,0.00019525,2]
[423079441,1779829832000,-182.56,0.00019187,2]
[423079414,1779829832000,-542.27442552,0.00018989,2]
[423079415,1779829832000,-500.0,0.00018989,2]
[423079418,1779829832000,-500.0,0.00018989,2]
[423079416,1779829832000,-500.0,0.00018989,2]
[423079421,1779829832000,-233.40804881,0.00018989,2]
[423079424,1779829832000,-500.0,0.00018989,2]
[423079423,1779829832000,-500.0,0.00018989,2]
[423079422,1779829832000,-500.0,0.00018989,2]
[423079425,1779829832000,-500.0,0.00018989,2]
[423079428,1779829832000,-500.0,0.00018989,2]
[423079432,1779829832000,-500.0,0.00018989,2]
[423079426,1779829832000,-500.0,0.00018989,2]
[423079430,1779829832000,-500.0,0.00018989,2]
[423079433,1779829832000,-500.0,0.00018989,2]
[423079427,1779829832000,-500.0,0.00018989,2]
[423079431,1779829832000,-500.0,0.00018989,2]
[423079445,1779829832000,-500.0,0.00019425,2]
[423079444,1779829832000,-220.86,0.00019425,2]
[423079434,1779829832000,-500.0,0.00018989,2]
[423079439,1779829832000,-500.0,0.00019048,2]
[423079440,1779829832000,-1730.91,0.00019149,2]
[423079442,1779829832000,-500.0,0.00019322,2]
[423079443,1779829832000,-500.0,0.00019425,2]
[423079448,1779829832000,-1157.42373269,0.00019426,2]
[423079436,1779829832000,-600.0,0.00018989,2]
[423079446,1779829832000,-500.0,0.00019425,2]
[423079438,1779829832000,-16719.22074022,0.0001899,2]
[423079437,1779829832000,-34892.44613953,0.0001899,2]
[423079435,1779829832000,-500.0,0.00018989,2]
[423079447,1779829832000,-500.0,0.00019425,2]
[423079429,1779829832000,-500.0,0.00018989,2]
[423079533,1779829833000,-164.358985,0.00024538,14]
[423079523,1779829833000,-163.2,0.00022353,2]
[423079517,1779829833000,-503.92488017,0.00021491,2]
[423079519,1779829833000,-1321.22,0.00021661,2]
[423079516,1779829833000,-168.310277,0.00021479,2]
[423079514,1779829833000,-182.56,0.00021319,2]
[423079518,1779829833000,-161.89,0.00021591,2]
[423079512,1779829833000,-153.0,0.00021,2]
[423079513,1779829833000,-673.604589,0.00021049,2]
[423079522,1779829833000,-2892.0,0.00022254,2]
[423079515,1779829833000,-4230.52386648,0.00021467,2]
[423079511,1779829833000,-959.11925474,0.00020821,2]
[423079536,1779829833000,-170.51,0.00024658,2]
[423079524,1779829833000,-213.59,0.00022816,2]
[423079526,1779829833000,-161.89,0.0002303,2]
[423079527,1779829833000,-152.0,0.00023324,2]
[423079529,1779829833000,-1023.96,0.00023795,2]
[423079528,1779829833000,-182.56,0.00023451,2]
[423079532,1779829833000,-503.92488015,0.0002442,2]
[423079530,1779829833000,-1321.22,0.00023827,2]
[423079531,1779829833000,-163.2,0.00024324,2]
[423079534,1779829833000,-1000.0,0.00024658,2]
[423079535,1779829833000,-169.39,0.00024658,2]
[423079545,1779829833000,-200.0,0.00026547,2]
[423079546,1779829833000,-500.0,0.00026675,2]
[423079521,1779829833000,-1157.42373263,0.00022233,2]
[423079525,1779829833000,-959.11925474,0.00022956,2]
[423079520,1779829833000,-5000.0,0.00021918,2]
[423079495,1779829833000,-151.0,0.00019526,2]
[423079509,1779829833000,-163.2,0.00020381,2]
[423079537,1779829833000,-171.28,0.00024658,2]
[423079481,1779829833000,-500.0,0.00019525,2]
[423079482,1779829833000,-409.96796785,0.00019525,2]
[423079486,1779829833000,-500.0,0.00019525,2]
[423079484,1779829833000,-608.54658548,0.00019525,2]
[423079485,1779829833000,-500.0,0.00019525,2]
[423079483,1779829833000,-500.0,0.00019525,2]
[423079488,1779829833000,-500.0,0.00019525,2]
[423079492,1779829833000,-151.0,0.00019526,2]
[423079487,1779829833000,-445.76678687,0.00019525,2]
[423079490,1779829833000,-535.10963346,0.00019525,2]
[423079489,1779829833000,-500.0,0.00019525,2]
[423079491,1779829833000,-500.0,0.00019525,2]
[423079510,1779829833000,-166.66,0.00020595,2]
[423079494,1779829833000,-252.147336,0.00019526,2]
[423079496,1779829833000,-519257.9512,0.00019526,2]
[423079497,1779829833000,-1730.91,0.00019594,2]
[423079507,1779829833000,-161.89,0.00020151,2]
[423079508,1779829833000,-2351.0,0.00020271,2]
[423079498,1779829833000,-500.0,0.00019596,2]
[423079500,1779829833000,-500.0,0.00019725,2]
[423079499,1779829833000,-500.0,0.00019725,2]
[423079502,1779829833000,-500.0,0.00019725,2]
[423079501,1779829833000,-500.0,0.00019725,2]
[423079504,1779829833000,-1573.45,0.00019725,2]
[423079503,1779829833000,-520.83,0.00019725,2]
[423079506,1779829833000,-153.0,0.0002,2]
[423079505,1779829833000,-3300.0,0.000199,7]
[423079493,1779829833000,-151.0,0.00019526,2]
[423079538,1779829833000,-1157.42373263,0.0002504,2]
[423079559,1779829833000,-516.0,0.0002737,4]
[423079542,1779829833000,-625.9765048,0.00025867,2]
[423079576,1779829833000,-531.78,0.00027759,7]
[423079579,1779829833000,-184.34,0.00027772,7]
[423079584,1779829833000,-1045.1,0.00027914,2]
[423079577,1779829833000,-535.74,0.00027762,7]
[423079575,1779829833000,-1045.1,0.00027759,7]
[423079578,1779829833000,-185.2,0.00027767,7]
[423079581,1779829833000,-166.66,0.00027866,2]
[423079582,1779829833000,-487.0,0.00027904,2]
[423079580,1779829833000,-1157.42373263,0.00027847,2]
[423079586,1779829833000,-535.74,0.00027917,2]
[423079587,1779829833000,-185.2,0.00027921,2]
[423079585,1779829833000,-531.78,0.00027914,2]
[423079592,1779829833000,-152.0,0.00028045,7]
[423079591,1779829833000,-152.0,0.00028045,7]